[Event "Baltic Zonal III Stage 2018"]
[Site "Liepaja"]
[Date "2018.07.10"]
[Round "3"]
[White "Haavamae, Henrik"]
[Black "Berzinsh, Roland"]
[Result "0-1"]
[ECO "C60"]
[WhiteElo "2185"]
[BlackElo "2410"]
[Annotator "NA"]
[PlyCount "86"]
[EventDate "2018.07.09"]
[EventType "swiss"]
[EventCountry "LAT"]
[SourceTitle "playchess.com"]
[Source "ChessBase"]
[SourceQuality "1"]
[TimeControl "5400+30"]

1. e4 {[%emt 0:00:00]} e5 {[%emt 0:02:17]} 2. Nf3 {[%emt 0:01:31]} Nc6 {[%emt 0:00:36]} 3. Bb5 {[%emt 0:00:15]} Nge7 {[%emt 0:00:20]} 4. O-O {[%emt 0:00:51]} g6 {[%emt 0:00:18]} 5. Nc3 {[%emt 0:11:27]} (5. c3 $14) 5... Bg7 $11 {[%emt 0:00:24] LiveBook: 15 Games} 6. a3 {[%emt 0:04:13]} O-O {[%emt 0:00:24]} 7. Bc4 {[%emt 0:02:47]} d6 {[%emt 0:07:59]} 8. d3 {[%emt 0:02:30]} h6 {[%emt 0:00:10]} 9. Be3 {[%emt 0:06:01]} Nd4 {[%emt 0:00:21]} 10. h3 {[%emt 0:10:09]} c6 {[%emt 0:08:08]} 11. Bxd4 {[%emt 0:04:06]} exd4 {[%emt 0:00:17]} 12. Ne2 {[%emt 0:00:05]} d5 {[%emt 0:02:59]} 13. exd5 {[%emt 0:02:48]} Nxd5 {[%emt 0:00:17]} 14. Nfxd4 {[%emt 0:06:48]} Qb6 {[%emt 0:25:33]} 15. c3 {[%emt 0:03:46]} Qxb2 {[%emt 0:01:17]} 16. Bxd5 {[%emt 0:02:34]} cxd5 {[%emt 0:00:20]} 17. Qb3 {[%emt 0:02:14]} Qxb3 {[%emt 0:01:40]} 18. Nxb3 {[%emt 0:01:24]} Bf5 {[%emt 0:00:06]} 19. d4 {[%emt 0:02:12]} Rfc8 {[%emt 0:02:05]} 20. Rfc1 {[%emt 0:01:59]} g5 {[%emt 0:02:58]} 21. f4 {[%emt 0:11:57]} Rc7 {[%emt 0:03:20]} 22. Nc5 {[%emt 0:10:42]} Re8 {[%emt 0:13:08]} 23. Ng3 {[%emt 0:01:56]} Bg6 {[%emt 0:05:24]} 24. f5 {[%emt 0:00:25]} Bh7 {[%emt 0:00:05]} 25. Re1 {[%emt 0:06:40]} Rec8 {[%emt 0:00:17]} 26. Rac1 {[%emt 0:00:29]} b6 {[%emt 0:00:48]} 27. Nd3 {[%emt 0:02:20]} Rxc3 {[%emt 0:01:17]} 28. Rxc3 {[%emt 0:00:08]} Bxd4+ {[%emt 0:02:07]} 29. Kh2 {[%emt 0:00:33]} Bxc3 {[%emt 0:00:09]} 30. Re7 {[%emt 0:00:53]} a5 {[%emt 0:00:15]} 31. Rd7 {[%emt 0:00:32]} h5 {[%emt 0:09:21]} 32. Rxd5 {[%emt 0:00:14]} h4 {[%emt 0:00:05]} 33. Ne4 {[%emt 0:00:41]} f6 {[%emt 0:01:16]} 34. g4 {[%emt 0:00:18]} hxg3+ {[%emt 0:00:31]} 35. Kxg3 {[%emt 0:00:30]} Ba1 {[%emt 0:01:41]} 36. Kg4 {[%emt 0:01:01]} Rc4 {[%emt 0:04:06]} 37. Ndf2 {[%emt 0:00:15]} Be5 {[%emt 0:01:36]} 38. Rd8+ {[%emt 0:00:57]} Kg7 {[%emt 0:00:05]} 39. Rd7+ {[%emt 0:00:16]} Kh6 {[%emt 0:00:07]} 40. Rb7 {[%emt 0:01:01]} Ra4 {[%emt 0:01:38]} 41. h4 {[%emt 0:00:23]} gxh4 {[%emt 0:00:07]} 42. Rf7 {[%emt 0:00:31]} h3 {[%emt 0:00:23]} 43. Kxh3 {[%emt 0:00:37]} Bxf5+ {[%emt 0:00:21]} 0-1

[Event "Baltic Zonal III Stage 2018"]
[Site "Liepaja"]
[Date "2018.07.10"]
[Round "3"]
[White "Pedoson, Georg Aleksander"]
[Black "Kantans, Toms"]
[Result "0-1"]
[ECO "E43"]
[WhiteElo "2176"]
[BlackElo "2529"]
[Annotator "ChessBase"]
[PlyCount "80"]
[EventDate "2018.07.09"]
[EventType "swiss"]
[EventCountry "LAT"]
[SourceTitle "playchess.com"]
[Source "ChessBase"]
[SourceQuality "1"]
[TimeControl "5400+30"]

1. d4 {[%emt 0:00:00]} Nf6 {[%emt 0:01:47]} 2. c4 {[%emt 0:00:10]} e6 {[%emt 0:00:50]} 3. Nc3 {[%emt 0:00:23]} Bb4 {[%emt 0:00:07]} 4. e3 {[%emt 0:00:09]} b6 {[%emt 0:00:40]} 5. Bd3 {[%emt 0:03:11]} Bb7 {[%emt 0:00:35]} 6. Nf3 {[%emt 0:05:19]} Ne4 {[%emt 0:03:36]} 7. Qc2 {[%emt 0:00:23]} f5 {[%emt 0:00:06]} 8. O-O {[%emt 0:03:28]} Bxc3 {[%emt 0:02:21]} 9. bxc3 {[%emt 0:00:07]} O-O 10. Ne1 {[%emt 0:01:58]} c5 {[%emt 0:08:25]} 11. f3 {[%emt 0:03:40]} Nd6 {[%emt 0:00:15]} 12. Ba3 {[%emt 0:05:56]} Qc7 {[%emt 0:01:29]} 13. e4 {[%emt 0:03:37]} Ba6 {[%emt 0:07:01]} 14. Qe2 {[%emt 0:01:41]} fxe4 {[%emt 0:04:02]} 15. fxe4 {[%emt 0:00:39]} Rxf1+ {[%emt 0:00:05]} 16. Qxf1 {[%emt 0:00:42]} Nc6 {[%emt 0:02:38]} 17. Nf3 {[%emt 0:02:54]} e5 {[%emt 0:07:57]} 18. d5 {[%emt 0:09:03]} Na5 {[%emt 0:00:31]} 19. Nxe5 {[%emt 0:09:02]} Rf8 {[%emt 0:06:05]} 20. Qe2 {[%emt 0:00:25]} Qd8 {[%emt 0:03:15]} 21. Bc1 {[%emt 0:05:03]} Qe8 {[%emt 0:07:15]} 22. Nf3 {[%emt 0:01:35]} Bxc4 {[%emt 0:00:10]} 23. e5 {[%emt 0:01:31]} Qg6 {[%emt 0:02:19]} 24. Bxc4 {[%emt 0:04:39]} Ndxc4 {[%emt 0:00:11]} 25. e6 {[%emt 0:11:47]} dxe6 {[%emt 0:01:12]} 26. dxe6 {[%emt 0:00:04]} Re8 {[%emt 0:00:55]} 27. e7 {[%emt 0:00:13]} h6 {[%emt 0:00:10]} 28. Bd2 {[%emt 0:00:59]} Nxd2 {[%emt 0:00:36]} 29. Nxd2 {[%emt 0:01:14]} Nc6 {[%emt 0:00:26]} 30. Rf1 {[%emt 0:00:15]} Rxe7 {[%emt 0:00:16]} 31. Qf3 {[%emt 0:00:17]} Kh7 {[%emt 0:01:57]} 32. h3 {[%emt 0:02:03]} Re6 {[%emt 0:02:58]} 33. Qd1 {[%emt 0:02:30]} Re3 {[%emt 0:02:09]} 34. Rf3 {[%emt 0:00:37]} Qd3 {[%emt 0:00:08]} 35. Rxe3 {[%emt 0:00:16]} Qxe3+ {[%emt 0:00:05]} 36. Kh1 {[%emt 0:00:07]} Qxc3 {[%emt 0:00:31]} 37. Qb1+ {[%emt 0:00:03]} Kh8 {[%emt 0:00:09]} 38. Ne4 {[%emt 0:00:12]} Qe5 {[%emt 0:00:37]} 39. Qe1 {[%emt 0:00:42]} Nd4 {[%emt 0:01:24]} 40. Qh4 {[%emt 0:00:17]} Kh7 {[%emt 0:00:48]} 0-1

[Event "Baltic Zonal III Stage 2018"]
[Site "Liepaja"]
[Date "2018.07.11"]
[Round "4"]
[White "Kovalenko, Igor"]
[Black "Kulaots, Kaido"]
[Result "1-0"]
[ECO "A36"]
[WhiteElo "2624"]
[BlackElo "2555"]
[Annotator "ChessBase"]
[PlyCount "81"]
[EventDate "2018.07.09"]
[EventType "swiss"]
[EventCountry "LAT"]
[SourceTitle "playchess.com"]
[Source "ChessBase"]
[SourceQuality "1"]
[TimeControl "5400+30"]

1. c4 {[%emt 0:00:00]} g6 {[%emt 0:00:32]} 2. Nc3 {[%emt 0:00:27]} c5 {[%emt 0:00:48]} 3. g3 {[%emt 0:00:03]} Bg7 {[%emt 0:00:12]} 4. Bg2 {[%emt 0:00:03]} Nc6 {[%emt 0:00:18]} 5. a3 {[%emt 0:01:19]} d6 {[%emt 0:01:05]} 6. d3 {[%emt 0:02:45]} e6 {[%emt 0:02:48]} 7. Bd2 {[%emt 0:04:02]} Nge7 {[%emt 0:01:12]} 8. Nh3 {[%emt 0:00:06]} e5 {[%emt 0:04:11]} 9. Rb1 {[%emt 0:01:44]} a5 {[%emt 0:06:23]} 10. e3 {[%emt 0:03:32]} h6 {[%emt 0:02:49]} 11. O-O {[%emt 0:00:44]} Bf5 {[%emt 0:05:54]} 12. e4 {[%emt 0:00:11]} Be6 {[%emt 0:00:17]} 13. Nd5 {[%emt 0:02:27]} Nd4 {[%emt 0:03:30]} 14. Bc3 {[%emt 0:13:36]} Nxd5 {[%emt 0:01:00]} 15. cxd5 {[%emt 0:00:36]} Bd7 {[%emt 0:01:00]} 16. Bxd4 {[%emt 0:00:13]} cxd4 {[%emt 0:03:08]} 17. f4 {[%emt 0:02:22]} O-O {[%emt 0:02:38]} 18. Qd2 {[%emt 0:00:42]} Rc8 {[%emt 0:03:03]} 19. f5 {[%emt 0:03:19]} Kh7 {[%emt 0:03:47]} 20. Rf2 {[%emt 0:01:48]} Bf6 {[%emt 0:00:59]} 21. Rbf1 {[%emt 0:01:32]} Ba4 {[%emt 0:09:14]} 22. Kh1 {[%emt 0:07:29]} Kg7 {[%emt 0:02:23]} 23. Bf3 {[%emt 0:00:15]} Rc2 {[%emt 0:07:59]} 24. Qe1 {[%emt 0:00:04]} Qc7 {[%emt 0:07:23]} 25. Bd1 {[%emt 0:01:20]} Rc1 {[%emt 0:01:15]} 26. Qe2 {[%emt 0:02:07]} Bxd1 {[%emt 0:01:42]} 27. Rxd1 {[%emt 0:00:02]} Rc8 {[%emt 0:01:00]} 28. Kg2 {[%emt 0:06:22]} Rc2 {[%emt 0:03:24]} 29. Rd2 {[%emt 0:03:55]} Rxd2 {[%emt 0:02:10]} 30. Qxd2 {[%emt 0:00:03]} a4 {[%emt 0:01:41]} 31. Qe2 {[%emt 0:05:11]} h5 {[%emt 0:07:56]} 32. Qf3 {[%emt 0:00:23]} Qe7 {[%emt 0:00:23]} 33. Qd1 {[%emt 0:00:27]} Qd7 {[%emt 0:00:22]} 34. Rf1 {[%emt 0:03:06]} Qb5 {[%emt 0:01:56]} 35. fxg6 {[%emt 0:09:09]} fxg6 {[%emt 0:01:50]} 36. Qf3 {[%emt 0:00:03]} Rf8 {[%emt 0:00:24]} 37. Ng5 {[%emt 0:00:04]} Kg8 {[%emt 0:01:03]} 38. Ne6 {[%emt 0:00:19]} Rf7 {[%emt 0:00:04]} 39. g4 {[%emt 0:00:21]} hxg4 {[%emt 0:04:44]} 40. Qxg4 {[%emt 0:00:05]} Qe8 {[%emt 0:00:14]} 41. Rf3 {[%emt 0:00:51]} 1-0

[Event "Baltic Zonal III Stage 2018"]
[Site "Liepaja"]
[Date "2018.07.11"]
[Round "4"]
[White "Ladva, Ottomar"]
[Black "Sulskis, Sarunas"]
[Result "0-1"]
[ECO "D00"]
[WhiteElo "2498"]
[BlackElo "2507"]
[Annotator "RC"]
[PlyCount "54"]
[EventDate "2018.07.09"]
[EventType "swiss"]
[EventCountry "LAT"]
[SourceTitle "playchess.com"]
[Source "ChessBase"]
[SourceQuality "1"]
[TimeControl "5400+30"]

1. d4 {[%emt 0:00:00]} d5 {[%emt 0:00:00]} 2. Bf4 {[%emt 0:00:00]} c5 {[%emt 0:03:25]} 3. e3 {[%emt 0:00:25]} Nc6 {[%emt 0:01:21]} 4. c3 {[%emt 0:02:46]} cxd4 {[%emt 0:11:06]} 5. exd4 {[%emt 0:00:26]} g6 {[%emt 0:00:34]} 6. Nd2 {[%emt 0:05:00]} Bh6 {[%emt 0:03:31]} 7. Bxh6 {[%emt 0:08:20]} Nxh6 {[%emt 0:00:08]} 8. h4 {[%emt 0:06:21]} Qd6 {[%emt 0:03:03]} 9. Bd3 {[%emt 0:06:59]} Bg4 {[%emt 0:07:51]} 10. Ngf3 {[%emt 0:07:54]} O-O-O {[%emt 0:01:45]} 11. Qa4 {[%emt 0:03:14]} e5 {[%emt 0:08:47]} 12. dxe5 {[%emt 0:12:42]} Nxe5 {[%emt 0:00:12]} 13. Be2 {[%emt 0:01:49]} Nxf3+ {[%emt 0:08:21]} 14. Bxf3 {[%emt 0:11:59]} Rhe8+ {[%emt 0:04:40]} 15. Kf1 {[%emt 0:00:08]} d4 {[%emt 0:05:18]} 16. Qxa7 {[%emt 0:05:57]} Bxf3 {[%emt 0:03:55]} 17. gxf3 {[%emt 0:00:13]} dxc3 {[%emt 0:05:46]} 18. Rc1 {[%emt 0:00:56]} Qxd2 {[%emt 0:02:21]} 19. Rxc3+ {[%emt 0:00:46]} Kd7 {[%emt 0:00:08]} 20. Qxb7+ {[%emt 0:01:12]} Ke6 {[%emt 0:00:39]} 21. Rc6+ {[%emt 0:07:24]} Rd6 {[%emt 0:01:12]} 22. h5 {[%emt 0:04:08]} Kf6 {[%emt 0:01:47]} 23. Rxd6+ {[%emt 0:02:35]} Qxd6 {[%emt 0:00:07]} 24. Qb3 {[%emt 0:03:18]} Qd2 {[%emt 0:04:49]} 25. Rh3 {[%emt 0:02:26]} Nf5 {[%emt 0:01:06]} 26. hxg6 {[%emt 0:01:45]} hxg6 {[%emt 0:01:07]} 27. f4 {[%emt 0:01:16]} Re2 {[%emt 0:03:48]} 0-1

[Event "Baltic Zonal III Stage 2018"]
[Site "Liepaja"]
[Date "2018.07.11"]
[Round "4"]
[White "Kanep, Meelis"]
[Black "Samolins, Vitalijs"]
[Result "1/2-1/2"]
[ECO "A06"]
[WhiteElo "2440"]
[BlackElo "2400"]
[Annotator "NA"]
[PlyCount "43"]
[EventDate "2018.07.09"]
[EventType "swiss"]
[EventCountry "LAT"]
[SourceTitle "playchess.com"]
[Source "ChessBase"]
[SourceQuality "1"]
[TimeControl "5400+30"]

1. Nf3 {[%emt 0:00:00]} d5 {[%emt 0:00:00]} 2. d4 {[%emt 0:01:16]} Bf5 {[%emt 0:00:38]} 3. c4 {[%emt 0:02:24]} e6 {[%emt 0:00:06]} 4. Nc3 {[%emt 0:02:22]} Nf6 {[%emt 0:00:08]} 5. e3 {[%emt 0:01:54] LiveBook: 41 Games} Be7 {[%emt 0:04:35]} 6. Qb3 {[%emt 0:01:43]} b6 {[%emt 0:07:57]} 7. Ne5 $11 {[%emt 0:15:41]} c6 {[%emt 0:05:52]} 8. Be2 {[%emt 0:07:07]} Nfd7 {[%emt 0:03:46]} 9. g4 {[%emt 0:04:51]} Nxe5 {[%emt 0:11:12]} 10. gxf5 {[%emt 0:03:57]} dxc4 {[%emt 0:09:18]} 11. Qd1 {[%emt 0:00:10]} Nd3+ {[%emt 0:00:09]} 12. Bxd3 {[%emt 0:00:07]} cxd3 {[%emt 0:00:01]} 13. fxe6 {[%emt 0:00:09]} O-O {[%emt 0:05:30]} 14. exf7+ {[%emt 0:01:17]} Rxf7 {[%emt 0:00:04]} 15. Qxd3 {[%emt 0:01:15]} c5 {[%emt 0:17:33]} 16. Qe4 {[%emt 0:17:42]} Nd7 {[%emt 0:01:07]} 17. O-O {[%emt 0:03:24]} Nf6 {[%emt 0:06:46]} 18. Qg2 {[%emt 0:04:20]} cxd4 {[%emt 0:03:38]} 19. exd4 {[%emt 0:00:06]} Qf8 {[%emt 0:01:35]} 20. Be3 {[%emt 0:05:26]} Rd8 {[%emt 0:00:21]} 21. Kh1 {[%emt 0:01:51]} Nh5 {[%emt 0:02:02]} 22. Ne2 {[%emt 0:03:31]} 1/2-1/2

[Event "Baltic Zonal III Stage 2018"]
[Site "Liepaja"]
[Date "2018.07.11"]
[Round "4"]
[White "Seeman, Tarvo"]
[Black "Pedoson, Georg Aleksander"]
[Result "1-0"]
[ECO "A08"]
[WhiteElo "2414"]
[BlackElo "2176"]
[Annotator "RC"]
[PlyCount "113"]
[EventDate "2018.07.09"]
[EventType "swiss"]
[EventCountry "LAT"]
[SourceTitle "playchess.com"]
[Source "ChessBase"]
[SourceQuality "1"]
[TimeControl "5400+30"]

1. Nf3 {[%emt 0:00:00]} d5 {[%emt 0:00:00]} 2. g3 {[%emt 0:00:00]} Nf6 {[%emt 0:00:00]} 3. Bg2 {[%emt 0:00:06]} e6 {[%emt 0:00:00]} 4. O-O {[%emt 0:00:15]} Be7 {[%emt 0:00:06]} 5. d3 {[%emt 0:00:21]} c5 {[%emt 0:00:12]} 6. Nbd2 {[%emt 0:01:12]} O-O {[%emt 0:00:35]} 7. e4 {[%emt 0:00:06]} Nc6 {[%emt 0:00:13]} 8. Re1 {[%emt 0:00:21]} Qc7 {[%emt 0:02:04]} 9. c3 {[%emt 0:00:15]} dxe4 {[%emt 0:00:32]} 10. dxe4 {[%emt 0:00:08]} e5 {[%emt 0:00:06]} 11. Qc2 {[%emt 0:05:42]} Rd8 {[%emt 0:04:00]} 12. a4 {[%emt 0:03:24]} h6 {[%emt 0:04:55]} 13. Nc4 {[%emt 0:01:57]} Be6 {[%emt 0:02:02]} 14. Bf1 {[%emt 0:00:32]} Rab8 {[%emt 0:06:04]} 15. a5 {[%emt 0:23:06]} b5 {[%emt 0:05:19]} 16. axb6 {[%emt 0:00:16]} axb6 {[%emt 0:00:04]} 17. Na3 {[%emt 0:05:43]} Ra8 {[%emt 0:07:47]} 18. b3 {[%emt 0:04:16]} Qb8 {[%emt 0:05:31]} 19. Rb1 {[%emt 0:06:22]} Ra7 {[%emt 0:04:12]} 20. Nb5 {[%emt 0:01:42]} Rad7 {[%emt 0:00:45]} 21. Nd2 {[%emt 0:00:48]} Na5 {[%emt 0:01:11]} 22. Nc4 {[%emt 0:03:20]} Nxc4 {[%emt 0:01:42]} 23. bxc4 {[%emt 0:01:18]} Bg4 {[%emt 0:02:49]} 24. Be3 {[%emt 0:02:26]} Qb7 {[%emt 0:08:01]} 25. Bg2 {[%emt 0:02:18]} Be6 {[%emt 0:00:06]} 26. Qe2 {[%emt 0:01:37]} Rd3 {[%emt 0:01:33]} 27. Na3 {[%emt 0:10:55]} Rxc3 {[%emt 0:06:00]} 28. Qb2 {[%emt 0:00:36]} Rdd3 {[%emt 0:04:44]} 29. Nb5 {[%emt 0:00:10]} Rxc4 {[%emt 0:02:19]} 30. Qxe5 {[%emt 0:00:10]} Rd7 {[%emt 0:08:35]} 31. h3 {[%emt 0:03:06]} Rc2 {[%emt 0:00:41]} 32. g4 {[%emt 0:01:50]} Qc8 {[%emt 0:02:37]} 33. Qg3 {[%emt 0:02:49]} Rd3 {[%emt 0:03:44]} 34. Qc7 {[%emt 0:01:16]} Qf8 {[%emt 0:01:23]} 35. Qxb6 {[%emt 0:00:45]} Nd7 {[%emt 0:00:59]} 36. Qb7 {[%emt 0:01:00]} g5 {[%emt 0:02:40]} 37. Nc7 {[%emt 0:00:56]} Ba2 {[%emt 0:00:33]} 38. Rbd1 {[%emt 0:00:56]} Ne5 {[%emt 0:00:31]} 39. Nd5 {[%emt 0:00:36]} Bd6 {[%emt 0:01:37]} 40. Rxd3 {[%emt 0:04:18]} Nxd3 {[%emt 0:00:07]} 41. Rd1 {[%emt 0:00:12]} c4 {[%emt 0:01:13]} 42. Nf6+ {[%emt 0:01:57]} Kg7 {[%emt 0:00:34]} 43. Bd4 {[%emt 0:00:34]} Ne5 {[%emt 0:00:32]} 44. Qb6 {[%emt 0:06:50]} Kxf6 {[%emt 0:03:58]} 45. Bxe5+ {[%emt 0:00:13]} Kxe5 {[%emt 0:00:04]} 46. Rd5+ {[%emt 0:00:17]} Kf6 {[%emt 0:00:02]} 47. e5+ {[%emt 0:00:25]} Kg7 {[%emt 0:00:02]} 48. exd6 {[%emt 0:00:12]} c3 {[%emt 0:00:15]} 49. d7 {[%emt 0:01:22]} Rc1+ {[%emt 0:01:41]} 50. Kh2 {[%emt 0:00:16]} Bxd5 {[%emt 0:01:10]} 51. d8=Q {[%emt 0:01:42]} Qxd8 {[%emt 0:00:05]} 52. Qxd8 {[%emt 0:00:05]} Be6 {[%emt 0:00:07]} 53. Qd4+ {[%emt 0:00:52]} Kg8 {[%emt 0:00:06]} 54. Qe3 {[%emt 0:00:31]} Rc2 {[%emt 0:00:14]} 55. Be4 {[%emt 0:00:17]} Ra2 {[%emt 0:00:04]} 56. Kg2 {[%emt 0:00:31]} c2 {[%emt 0:00:05]} 57. Qc3 {[%emt 0:00:33]} 1-0

[Event "Baltic Zonal III Stage 2018"]
[Site "Liepaja"]
[Date "2018.07.11"]
[Round "4"]
[White "Klabis, Rokas"]
[Black "Sirosh, Ilja"]
[Result "0-1"]
[ECO "C50"]
[WhiteElo "2347"]
[BlackElo "2339"]
[Annotator "NA"]
[PlyCount "70"]
[EventDate "2018.07.09"]
[EventType "swiss"]
[EventCountry "LAT"]
[SourceTitle "playchess.com"]
[Source "ChessBase"]
[SourceQuality "1"]
[TimeControl "5400+30"]

1. e4 {[%emt 0:00:00]} e5 {[%emt 0:00:00]} 2. Nf3 {[%emt 0:00:00]} Nc6 {[%emt 0:00:00]} 3. Bc4 {[%emt 0:00:00]} Bc5 {[%emt 0:00:00]} 4. O-O {[%emt 0:00:06]} Nf6 {[%emt 0:00:00]} 5. d3 {[%emt 0:00:04]} O-O {[%emt 0:00:00]} 6. c3 {[%emt 0:00:03]} d5 {[%emt 0:00:02]} 7. exd5 {[%emt 0:00:05]} Nxd5 {[%emt 0:00:03]} 8. a4 {[%emt 0:00:06]} a6 {[%emt 0:00:26]} 9. a5 {[%emt 0:00:05]} Bf5 {[%emt 0:00:19]} 10. Re1 {[%emt 0:04:08]} b5 {[%emt 0:15:14]} 11. axb6 $1 {[%emt 0:02:28]} Nxb6 $16 {[%emt 0:00:10]} 12. Bg5 {[%emt 0:06:16]} Qc8 {[%emt 0:32:35]} 13. b4 {[%emt 0:16:32]} Bd6 {[%emt 0:01:50]} 14. Nbd2 {[%emt 0:00:46]} Nxc4 {[%emt 0:04:58]} 15. dxc4 {[%emt 0:16:59]} f6 {[%emt 0:02:32]} 16. Ne4 {[%emt 0:17:52]} Be7 {[%emt 0:13:32]} 17. Qd5+ {[%emt 0:08:31]} Qe6 {[%emt 0:00:10]} 18. Bh4 {[%emt 0:01:06]} Rfd8 {[%emt 0:01:25]} 19. Qxe6+ {[%emt 0:02:21]} Bxe6 {[%emt 0:00:01]} 20. b5 {[%emt 0:00:18]} axb5 {[%emt 0:02:23]} 21. cxb5 {[%emt 0:04:03]} Rxa1 {[%emt 0:02:07]} 22. Rxa1 {[%emt 0:00:05]} Na7 {[%emt 0:00:12]} 23. Nxe5 {[%emt 0:09:22]} g5 {[%emt 0:06:19]} 24. f4 {[%emt 0:00:08]} fxe5 {[%emt 0:01:28]} 25. Rxa7 {[%emt 0:00:20]} gxh4 {[%emt 0:00:13]} 26. Rxc7 {[%emt 0:00:20]} Rd7 {[%emt 0:00:42]} 27. Rc6 {[%emt 0:05:36]} Rd1+ {[%emt 0:06:50]} 28. Kf2 {[%emt 0:00:09]} Bd7 {[%emt 0:00:11]} 29. Rc7 {[%emt 0:01:14]} Bd8 {[%emt 0:00:04]} 30. Rb7 {[%emt 0:00:20]} exf4 {[%emt 0:01:32]} 31. Kf3 {[%emt 0:01:55]} h3 {[%emt 0:03:08]} 32. gxh3 {[%emt 0:00:34]} Bxh3 {[%emt 0:00:02]} 33. c4 {[%emt 0:00:34]} Bh4 {[%emt 0:00:44]} 34. Kxf4 {[%emt 0:00:24]} Rd4 {[%emt 0:00:37]} 35. Ke5 {[%emt 0:00:43]} Rxe4+ {[%emt 0:00:38] Kd4} 0-1

[Event "Baltic Zonal III Stage 2018"]
[Site "Liepaja"]
[Date "2018.07.11"]
[Round "4"]
[White "Rogule, Laura"]
[Black "Haavamae, Henrik"]
[Result "0-1"]
[ECO "A46"]
[WhiteElo "2320"]
[BlackElo "2185"]
[Annotator "NA"]
[PlyCount "84"]
[EventDate "2018.07.09"]
[EventType "swiss"]
[EventCountry "LAT"]
[SourceTitle "playchess.com"]
[Source "ChessBase"]
[SourceQuality "1"]
[TimeControl "5400+30"]

1. d4 {[%emt 0:00:00]} Nf6 {[%emt 0:00:17]} 2. Nf3 {[%emt 0:00:01]} e6 {[%emt 0:00:35]} 3. c4 {[%emt 0:01:52]} d5 {[%emt 0:02:06]} 4. g3 {[%emt 0:03:50]} Bb4+ {[%emt 0:01:29]} 5. Bd2 {[%emt 0:02:26]} Bd6 $11 {[%emt 0:01:17] LiveBook: 585 Partien} 6. c5 {[%emt 0:16:08]} Be7 {[%emt 0:00:06]} 7. Nc3 {[%emt 0:06:13]} Ne4 {[%emt 0:25:06]} 8. b4 {[%emt 0:05:36]} b6 {[%emt 0:03:06]} 9. a3 {[%emt 0:12:34]} O-O {[%emt 0:05:30]} 10. e3 {[%emt 0:03:36]} f5 {[%emt 0:01:03]} 11. Ne5 {[%emt 0:04:06]} Bf6 {[%emt 0:07:27]} 12. f4 {[%emt 0:02:50]} a5 {[%emt 0:03:31]} 13. Be2 {[%emt 0:11:42]} Bb7 {[%emt 0:00:47]} 14. O-O {[%emt 0:02:14]} Bxe5 {[%emt 0:17:16]} 15. fxe5 {[%emt 0:00:21]} Nd7 {[%emt 0:01:14]} 16. Nxe4 {[%emt 0:08:03]} fxe4 {[%emt 0:00:25]} 17. cxb6 {[%emt 0:04:55]} cxb6 {[%emt 0:01:32]} 18. bxa5 {[%emt 0:00:53]} bxa5 {[%emt 0:00:26]} 19. Qa4 {[%emt 0:05:07]} Rxf1+ {[%emt 0:05:33]} 20. Bxf1 {[%emt 0:01:48]} Nb6 {[%emt 0:01:07]} 21. Qb5 {[%emt 0:01:08]} Ba6 {[%emt 0:00:38]} 22. Qc6 {[%emt 0:00:17]} Bxf1 {[%emt 0:04:44]} 23. Qxe6+ {[%emt 0:00:08]} Kh8 {[%emt 0:00:05]} 24. Rxf1 {[%emt 0:00:03]} Nc4 {[%emt 0:00:12]} 25. Bc1 {[%emt 0:01:03]} Qg8 {[%emt 0:02:24]} 26. Qf5 {[%emt 0:03:30]} Re8 {[%emt 0:07:15]} 27. e6 {[%emt 0:01:08]} Rxe6 {[%emt 0:00:10]} 28. Qxd5 {[%emt 0:00:10]} Re8 {[%emt 0:01:03]} 29. Qc6 {[%emt 0:01:44]} h6 {[%emt 0:00:58]} 30. Rf4 {[%emt 0:00:39]} Rc8 {[%emt 0:02:05]} 31. Qxe4 {[%emt 0:00:11]} Nd6 {[%emt 0:00:19]} 32. Qb1 {[%emt 0:00:06]} Qc4 {[%emt 0:00:22]} 33. Bd2 {[%emt 0:00:44]} a4 {[%emt 0:00:55]} 34. Qb4 {[%emt 0:00:49]} Qc6 {[%emt 0:01:32]} 35. d5 {[%emt 0:00:58]} Qc2 {[%emt 0:01:00]} 36. e4 {[%emt 0:00:29]} Nc4 {[%emt 0:00:26]} 37. Bc3 {[%emt 0:00:19]} Ne3 {[%emt 0:00:53]} 38. Bxg7+ {[%emt 0:00:35]} Kh7 {[%emt 0:00:06]} 39. Qb2 {[%emt 0:00:35]} Qd1+ {[%emt 0:00:39]} 40. Kf2 {[%emt 0:00:02]} Rc2+ {[%emt 0:00:14]} 41. Kxe3 {[%emt 0:01:04]} Qd2+ {[%emt 0:00:10]} 42. Kf3 {[%emt 0:00:07]} Qe2# {[%emt 0:00:05]} 0-1

[Event "Baltic Zonal III Stage 2018"]
[Site "Liepaja"]
[Date "2018.07.11"]
[Round "4"]
[White "Brazdzionis, Andrius"]
[Black "Bernotas, Arturs"]
[Result "1-0"]
[ECO "E12"]
[WhiteElo "2252"]
[BlackElo "2413"]
[Annotator "RC"]
[PlyCount "85"]
[EventDate "2018.07.09"]
[EventType "swiss"]
[EventCountry "LAT"]
[SourceTitle "playchess.com"]
[Source "ChessBase"]
[SourceQuality "1"]
[TimeControl "5400+30"]

1. d4 {[%emt 0:00:00]} Nf6 {[%emt 0:00:00]} 2. c4 {[%emt 0:00:00]} e6 {[%emt 0:00:11]} 3. Nf3 {[%emt 0:00:04]} b6 {[%emt 0:00:25]} 4. a3 {[%emt 0:00:16]} Bb7 {[%emt 0:00:20]} 5. Nc3 {[%emt 0:00:10]} d5 {[%emt 0:00:31]} 6. cxd5 {[%emt 0:00:10]} Nxd5 {[%emt 0:00:18]} 7. Qc2 {[%emt 0:00:09]} c5 {[%emt 0:00:34]} 8. e4 {[%emt 0:17:41]} Nxc3 {[%emt 0:00:48]} 9. bxc3 {[%emt 0:00:21]} Nd7 {[%emt 0:01:39]} 10. Bb5 {[%emt 0:05:58]} a6 {[%emt 0:01:57]} 11. Bd3 {[%emt 0:00:09]} Qc7 {[%emt 0:00:58]} 12. Qb1 {[%emt 0:05:52]} g6 {[%emt 0:00:59]} 13. h4 {[%emt 0:12:27]} h6 {[%emt 0:10:39]} 14. Ra2 {[%emt 0:07:20]} Bg7 {[%emt 0:14:59]} 15. Re2 {[%emt 0:04:11]} Rc8 {[%emt 0:09:36]} 16. Bd2 {[%emt 0:02:21]} b5 {[%emt 0:14:41]} 17. d5 {[%emt 0:07:53]} c4 {[%emt 0:02:05]} 18. Bc2 {[%emt 0:00:06]} Nc5 {[%emt 0:00:52]} 19. a4 {[%emt 0:00:48]} O-O {[%emt 0:07:30]} 20. dxe6 {[%emt 0:03:54]} fxe6 {[%emt 0:04:52]} 21. axb5 {[%emt 0:00:31]} axb5 {[%emt 0:00:22]} 22. O-O {[%emt 0:02:50]} Qe7 {[%emt 0:07:59]} 23. Qb4 {[%emt 0:09:19]} Qd7 {[%emt 0:13:06]} 24. Rb1 {[%emt 0:02:37]} Nd3 {[%emt 0:03:40]} 25. Qxb5 {[%emt 0:02:03]} Bc6 {[%emt 0:00:05]} 26. Qb6 {[%emt 0:00:16]} Rxf3 {[%emt 0:02:25]} 27. gxf3 {[%emt 0:00:36]} Rf8 {[%emt 0:00:35]} 28. f4 {[%emt 0:06:11]} e5 {[%emt 0:00:41]} 29. f3 {[%emt 0:01:23]} exf4 {[%emt 0:00:37]} 30. Bxd3 {[%emt 0:03:14]} Qxd3 {[%emt 0:00:25]} 31. Rf2 {[%emt 0:00:47]} g5 {[%emt 0:00:46]} 32. hxg5 {[%emt 0:01:55]} hxg5 {[%emt 0:00:02]} 33. Ra1 {[%emt 0:00:15]} Bd7 {[%emt 0:00:47]} 34. Ra7 {[%emt 0:00:40]} Rf7 {[%emt 0:00:54]} 35. Qd8+ {[%emt 0:00:21]} Bf8 {[%emt 0:00:15]} 36. Ra5 {[%emt 0:02:22]} Rg7 {[%emt 0:00:51]} 37. Rxg5 {[%emt 0:01:06]} Qb1+ {[%emt 0:00:18]} 38. Rf1 {[%emt 0:00:31]} Qb5 {[%emt 0:00:09]} 39. Bxf4 {[%emt 0:00:52]} Kh7 {[%emt 0:01:02]} 40. Rxg7+ {[%emt 0:00:40]} Bxg7 {[%emt 0:00:02]} 41. Rd1 {[%emt 0:00:47]} Qc5+ {[%emt 0:00:37]} 42. Kg2 {[%emt 0:00:16]} Be6 {[%emt 0:00:12]} 43. Qe8 {[%emt 0:00:32]} 1-0